[Event "*** Qualifier 3: Titled Tuesday 3|2 Blitz"]
[Site "Chess.com"]
[Date "2017.04.18"]
[Round "2"]
[White "djano"]
[Black "chessking2151"]
[Result "1-0"]
[WhiteElo "2358"]
[BlackElo "2314"]
[TimeControl "180+2"]
[EndTime "13:26:29 PDT"]
[Termination "djano won on time"]

1. d4 {[%clk 0:03:02]} 1... Nf6 {[%clk 0:03:01]} 2. Bf4 {[%clk 0:03:02.5]} 2...
c5 {[%clk 0:03:01.4]} 3. e3 {[%clk 0:03:02.7]} 3... d5 {[%clk 0:02:58.1]} 4. Nd2
{[%clk 0:02:59.9]} 4... Nc6 {[%clk 0:02:56]} 5. c3 {[%clk 0:02:59.7]} 5... Bf5
{[%clk 0:02:56.2]} 6. Ngf3 {[%clk 0:02:58.3]} 6... e6 {[%clk 0:02:54.4]} 7. Bb5
{[%clk 0:02:27.5]} 7... Qb6 {[%clk 0:02:36.4]} 8. Qa4 {[%clk 0:02:28.3]} 8... a6
{[%clk 0:02:16.2]} 9. Bxc6+ {[%clk 0:02:28.5]} 9... Qxc6 {[%clk 0:02:14.9]} 10.
Qxc6+ {[%clk 0:02:26.7]} 10... bxc6 {[%clk 0:02:16.8]} 11. dxc5 {[%clk
0:02:25.7]} 11... Bxc5 {[%clk 0:02:17]} 12. Nd4 {[%clk 0:02:26.8]} 12... Rc8
{[%clk 0:01:54.3]} 13. f3 {[%clk 0:02:17.6]} 13... Bg6 {[%clk 0:01:53.4]} 14.
Ke2 {[%clk 0:02:08.6]} 14... Nd7 {[%clk 0:01:53.3]} 15. N4b3 {[%clk 0:02:02]}
15... Be7 {[%clk 0:01:52.3]} 16. Rhc1 {[%clk 0:01:51.9]} 16... c5 {[%clk
0:01:43.5]} 17. e4 {[%clk 0:01:30.6]} 17... dxe4 {[%clk 0:01:29.3]} 18. Nxe4
{[%clk 0:01:32.5]} 18... e5 {[%clk 0:01:24.2]} 19. Be3 {[%clk 0:01:22.7]} 19...
f5 {[%clk 0:01:20.9]} 20. Ned2 {[%clk 0:01:19.3]} 20... O-O {[%clk 0:01:18.2]}
21. Nc4 {[%clk 0:01:18.3]} 21... Bf7 {[%clk 0:01:12.5]} 22. Nba5 {[%clk
0:01:14.2]} 22... Rfd8 {[%clk 0:00:55.5]} 23. Rd1 {[%clk 0:01:15.1]} 23... Kf8
{[%clk 0:00:35.9]} 24. Nd6 {[%clk 0:01:13.7]} 24... Bxd6 {[%clk 0:00:28.1]} 25.
Rxd6 {[%clk 0:01:15.6]} 25... Rb8 {[%clk 0:00:27.9]} 26. b3 {[%clk 0:01:06.5]}
26... Ke8 {[%clk 0:00:20.7]} 27. Rad1 {[%clk 0:00:55.6]} 27... c4 {[%clk
0:00:18.9]} 28. b4 {[%clk 0:00:47.9]} 28... Nf6 {[%clk 0:00:11.6]} 29. Rxa6
{[%clk 0:00:43.7]} 29... Rxd1 {[%clk 0:00:11.9]} 30. Kxd1 {[%clk 0:00:45.6]}
30... Nd5 {[%clk 0:00:12.9]} 31. Bd2 {[%clk 0:00:39.5]} 31... Rd8 {[%clk
0:00:14.2]} 32. Ke2 {[%clk 0:00:40.7]} 32... e4 {[%clk 0:00:11.3]} 33. Nc6
{[%clk 0:00:37.5]} 33... Rc8 {[%clk 0:00:06.7]} 34. b5 {[%clk 0:00:39]} 34... e3
{[%clk 0:00:07.4]} 35. Be1 {[%clk 0:00:36.5]} 35... f4 {[%clk 0:00:08.7]} 36. g3
{[%clk 0:00:35.7]} 36... Bg6 {[%clk 0:00:08.9]} 37. Ne5 {[%clk 0:00:32.7]} 37...
Rb8 {[%clk 0:00:06.9]} 38. a4 {[%clk 0:00:28.8]} 38... Rd8 {[%clk 0:00:06]} 39.
Nxg6 {[%clk 0:00:20.6]} 39... hxg6 {[%clk 0:00:07.1]} 40. b6 {[%clk 0:00:18.7]}
40... g5 {[%clk 0:00:06.1]} 41. b7 {[%clk 0:00:18.8]} 41... Nc7 {[%clk
0:00:07.2]} 42. Rc6 {[%clk 0:00:17.8]} 42... Kd7 {[%clk 0:00:07.7]} 43. Rxc4
{[%clk 0:00:17.8]} 43... Rb8 {[%clk 0:00:09.1]} 44. gxf4 {[%clk 0:00:18.5]}
44... gxf4 {[%clk 0:00:09.8]} 45. Rxf4 {[%clk 0:00:20.1]} 45... Rxb7 {[%clk
0:00:11.4]} 46. Rf7+ {[%clk 0:00:21.3]} 46... Ke6 {[%clk 0:00:12.4]} 47. Rxg7
{[%clk 0:00:20]} 47... Rb2+ {[%clk 0:00:13.2]} 48. Kxe3 {[%clk 0:00:20.6]} 48...
Nd5+ {[%clk 0:00:13.6]} 49. Kd4 {[%clk 0:00:22]} 49... Re2 {[%clk 0:00:14.2]}
50. Bg3 {[%clk 0:00:21.4]} 50... Ne7 {[%clk 0:00:15.7]} 51. Kc4 {[%clk
0:00:20.5]} 51... Re3 {[%clk 0:00:13.9]} 52. f4 {[%clk 0:00:18.9]} 52... Nf5
{[%clk 0:00:12.8]} 53. Rg6+ {[%clk 0:00:18.9]} 53... Kf7 {[%clk 0:00:13.8]} 54.
Rg5 {[%clk 0:00:20.6]} 54... Re4+ {[%clk 0:00:13.6]} 55. Kb5 {[%clk 0:00:19.8]}
55... Nd6+ {[%clk 0:00:14.1]} 56. Kc6 {[%clk 0:00:19.4]} 56... Re6 {[%clk
0:00:10.8]} 57. Kd7 {[%clk 0:00:17.9]} 57... Ne4 {[%clk 0:00:12.1]} 58. Re5
{[%clk 0:00:15.8]} 58... Nf6+ {[%clk 0:00:13.1]} 59. Kc7 {[%clk 0:00:14]} 59...
Ne8+ {[%clk 0:00:09]} 60. Kb7 {[%clk 0:00:12]} 60... Nd6+ {[%clk 0:00:10]} 61.
Kc6 {[%clk 0:00:12.7]} 61... Rh6 {[%clk 0:00:11.4]} 62. Kc5 {[%clk 0:00:10.6]}
62... Nb7+ {[%clk 0:00:11.7]} 63. Kb4 {[%clk 0:00:11.2]} 63... Rb6+ {[%clk
0:00:11.6]} 64. Rb5 {[%clk 0:00:12.2]} 64... Re6 {[%clk 0:00:08.9]} 65. Rxb7+
{[%clk 0:00:12.8]} 65... Kf6 {[%clk 0:00:10.8]} 66. a5 {[%clk 0:00:14.1]} 1-0

[Event "*** Qualifier 3: Titled Tuesday 3|2 Blitz"]
[Site "Chess.com"]
[Date "2017.04.18"]
[Round "2"]
[White "GMSAGOR"]
[Black "mc4chess"]
[Result "0-1"]
[WhiteElo "2058"]
[BlackElo "2222"]
[TimeControl "180+2"]
[EndTime "13:27:01 PDT"]
[Termination "mc4chess won by checkmate"]

1. e4 {[%clk 0:03:01.8]} 1... c5 {[%clk 0:02:59.9]} 2. Nf3 {[%clk 0:03:01.3]}
2... e6 {[%clk 0:03:00.4]} 3. d4 {[%clk 0:03:01]} 3... cxd4 {[%clk 0:03:02.3]}
4. Nxd4 {[%clk 0:03:02.9]} 4... a6 {[%clk 0:03:03.5]} 5. Nc3 {[%clk 0:03:02.2]}
5... Qc7 {[%clk 0:03:04.1]} 6. Be2 {[%clk 0:03:03]} 6... Nf6 {[%clk 0:03:04.2]}
7. O-O {[%clk 0:03:03.3]} 7... d6 {[%clk 0:03:05.2]} 8. Be3 {[%clk 0:03:03.9]}
8... Nc6 {[%clk 0:03:05.4]} 9. Kh1 {[%clk 0:02:57.9]} 9... Be7 {[%clk
0:03:03.6]} 10. f4 {[%clk 0:02:59.4]} 10... Bd7 {[%clk 0:03:00]} 11. Qe1 {[%clk
0:03:00.3]} 11... b5 {[%clk 0:02:48.3]} 12. a3 {[%clk 0:02:59.1]} 12... Rc8
{[%clk 0:02:39.7]} 13. Qg3 {[%clk 0:02:58.7]} 13... g6 {[%clk 0:02:37.1]} 14.
Nxc6 {[%clk 0:02:46.8]} 14... Bxc6 {[%clk 0:02:37.4]} 15. Bd4 {[%clk 0:02:47.2]}
15... Rg8 {[%clk 0:02:19.1]} 16. e5 {[%clk 0:02:36.7]} 16... Ne4 {[%clk
0:02:19.5]} 17. Nxe4 {[%clk 0:02:35.1]} 17... Bxe4 {[%clk 0:02:21.4]} 18. c3
{[%clk 0:02:36.3]} 18... h5 {[%clk 0:02:12.3]} 19. Bxh5 {[%clk 0:02:33.5]} 19...
d5 {[%clk 0:01:40.1]} 20. Bf3 {[%clk 0:02:27.3]} 20... Bf5 {[%clk 0:01:40.7]}
21. Bg4 {[%clk 0:02:13.7]} 21... Be4 {[%clk 0:01:36.2]} 22. Rae1 {[%clk
0:02:13.9]} 22... Rh8 {[%clk 0:01:28.8]} 23. Qe3 {[%clk 0:01:58.6]} 23... Kd7
{[%clk 0:01:11.8]} 24. Bf3 {[%clk 0:01:55.9]} 24... Bf5 {[%clk 0:01:12]} 25. g4
{[%clk 0:01:24.9]} 25... Be4 {[%clk 0:00:57.4]} 26. Bxe4 {[%clk 0:01:25.8]}
26... dxe4 {[%clk 0:00:58.1]} 27. Qxe4 {[%clk 0:01:25.2]} 27... Rh4 {[%clk
0:00:42.9]} 28. Rd1 {[%clk 0:01:21.4]} 28... Ke8 {[%clk 0:00:29.4]} 29. Rg1
{[%clk 0:01:14.3]} 29... a5 {[%clk 0:00:20.6]} 30. Bf2 {[%clk 0:01:09.4]} 30...
Rh8 {[%clk 0:00:15.6]} 31. Bg3 {[%clk 0:01:06.4]} 31... b4 {[%clk 0:00:14.1]}
32. axb4 {[%clk 0:01:06.9]} 32... axb4 {[%clk 0:00:16]} 33. Rd3 {[%clk
0:01:03.6]} 33... Qb8 {[%clk 0:00:15.4]} 34. Rgd1 {[%clk 0:01:01.8]} 34... bxc3
{[%clk 0:00:15.1]} 35. bxc3 {[%clk 0:01:02.4]} 35... Qb3 {[%clk 0:00:14.7]} 36.
Kg2 {[%clk 0:00:47.7]} 36... Kf8 {[%clk 0:00:13.1]} 37. f5 {[%clk 0:00:42.8]}
37... gxf5 {[%clk 0:00:13]} 38. gxf5 {[%clk 0:00:44.7]} 38... exf5 {[%clk
0:00:12.6]} 39. Qxf5 {[%clk 0:00:46.6]} 39... Rc6 {[%clk 0:00:13.2]} 40. Rf1
{[%clk 0:00:43.2]} 40... Qe6 {[%clk 0:00:13.3]} 41. Qf3 {[%clk 0:00:39.6]} 41...
Rc4 {[%clk 0:00:13]} 42. Qf5 {[%clk 0:00:34.4]} 42... Qxf5 {[%clk 0:00:11.6]}
43. Rxf5 {[%clk 0:00:36.3]} 43... Kg7 {[%clk 0:00:13.2]} 44. Rd7 {[%clk
0:00:36.6]} 44... Re8 {[%clk 0:00:13.8]} 45. e6 {[%clk 0:00:33.1]} 45... fxe6
{[%clk 0:00:15.7]} 46. Be5+ {[%clk 0:00:30.7]} 46... Kg6 {[%clk 0:00:15.7]} 47.
Rf3 {[%clk 0:00:30.9]} 47... Rg4+ {[%clk 0:00:16.1]} 48. Kf2 {[%clk 0:00:27.7]}
48... Rg5 {[%clk 0:00:17]} 49. Ke3 {[%clk 0:00:22.3]} 49... Rxe5+ {[%clk
0:00:15.9]} 50. Kd4 {[%clk 0:00:23.3]} 50... Rg5 {[%clk 0:00:13.2]} 51. c4
{[%clk 0:00:23.6]} 51... Bf6+ {[%clk 0:00:13.9]} 52. Ke4 {[%clk 0:00:23.6]}
52... Rc8 {[%clk 0:00:14.7]} 53. Rd6 {[%clk 0:00:22.5]} 53... Rxc4+ {[%clk
0:00:15]} 54. Ke3 {[%clk 0:00:23.7]} 54... Rc3+ {[%clk 0:00:15.9]} 55. Kf2
{[%clk 0:00:25.1]} 55... Rxf3+ {[%clk 0:00:17.2]} 56. Kxf3 {[%clk 0:00:27]}
56... Rf5+ {[%clk 0:00:18.6]} 57. Kg4 {[%clk 0:00:27.8]} 57... e5 {[%clk
0:00:18.3]} 58. h3 {[%clk 0:00:27.2]} 58... Rf4+ {[%clk 0:00:19.1]} 59. Kg3
{[%clk 0:00:28.4]} 59... Kf5 {[%clk 0:00:20]} 60. Ra6 {[%clk 0:00:27.9]} 60...
Bh4+ {[%clk 0:00:20.7]} 61. Kg2 {[%clk 0:00:28.8]} 61... Rf2+ {[%clk 0:00:22.2]}
62. Kg1 {[%clk 0:00:29.9]} 62... Rb2 {[%clk 0:00:24.1]} 63. Ra8 {[%clk 0:00:30]}
63... e4 {[%clk 0:00:24.9]} 64. Rh8 {[%clk 0:00:31.6]} 64... Bg5 {[%clk
0:00:24.9]} 65. h4 {[%clk 0:00:33.5]} 65... Bf4 {[%clk 0:00:25.2]} 66. h5 {[%clk
0:00:34.7]} 66... e3 {[%clk 0:00:26.3]} 67. h6 {[%clk 0:00:35.8]} 67... Ke4
{[%clk 0:00:23.7]} 68. h7 {[%clk 0:00:34]} 68... Kf3 {[%clk 0:00:24.9]} 69. Re8
{[%clk 0:00:32.7]} 69... Rb1# {[%clk 0:00:25.2]} 0-1

[Event "*** Qualifier 3: Titled Tuesday 3|2 Blitz"]
[Site "Chess.com"]
[Date "2017.04.18"]
[Round "2"]
[White "daro94"]
[Black "A-Fier"]
[Result "0-1"]
[WhiteElo "2750"]
[BlackElo "2504"]
[TimeControl "180+2"]
[EndTime "13:27:51 PDT"]
[Termination "A-Fier won by resignation"]

1. Nf3 {[%clk 0:03:02]} 1... Nf6 {[%clk 0:02:43.6]} 2. b3 {[%clk 0:03:02.3]}
2... g6 {[%clk 0:02:43]} 3. Bb2 {[%clk 0:03:03.8]} 3... Bg7 {[%clk 0:02:43]} 4.
g3 {[%clk 0:03:04.8]} 4... d5 {[%clk 0:02:44.2]} 5. c4 {[%clk 0:03:03.4]} 5...
c6 {[%clk 0:02:43.3]} 6. Bg2 {[%clk 0:03:04.2]} 6... O-O {[%clk 0:02:44.1]} 7.
O-O {[%clk 0:03:05.6]} 7... a5 {[%clk 0:02:39.7]} 8. Nc3 {[%clk 0:03:02.3]} 8...
d4 {[%clk 0:02:36.1]} 9. Na4 {[%clk 0:02:58.9]} 9... Ne8 {[%clk 0:02:16.3]} 10.
e3 {[%clk 0:02:40.1]} 10... e5 {[%clk 0:02:12.4]} 11. exd4 {[%clk 0:02:33.6]}
11... exd4 {[%clk 0:02:12]} 12. Re1 {[%clk 0:02:16.1]} 12... Na6 {[%clk
0:01:58.6]} 13. c5 {[%clk 0:01:36.8]} 13... Bf5 {[%clk 0:01:46.8]} 14. a3 {[%clk
0:01:24.9]} 14... Nec7 {[%clk 0:01:47.5]} 15. Rc1 {[%clk 0:01:17.4]} 15... Nb5
{[%clk 0:01:43.3]} 16. Ne5 {[%clk 0:00:43.6]} 16... Qc7 {[%clk 0:01:17.4]} 17.
Nc4 {[%clk 0:00:42.3]} 17... Rad8 {[%clk 0:01:15.9]} 18. Qf3 {[%clk 0:00:28.3]}
18... Be6 {[%clk 0:01:11]} 19. g4 {[%clk 0:00:19.4]} 19... Bd5 {[%clk
0:01:11.4]} 20. Qg3 {[%clk 0:00:20.6]} 20... Bxg2 {[%clk 0:01:11.6]} 21. Qxc7
{[%clk 0:00:20]} 21... Naxc7 {[%clk 0:01:11]} 22. Kxg2 {[%clk 0:00:21.9]} 22...
Ra8 {[%clk 0:01:08.9]} 23. Nab6 {[%clk 0:00:21.4]} 23... Ra6 {[%clk 0:00:48.4]}
24. a4 {[%clk 0:00:21.8]} 24... Na7 {[%clk 0:00:49.4]} 25. Nd6 {[%clk
0:00:18.6]} 25... Ne6 {[%clk 0:00:47]} 26. Nxb7 {[%clk 0:00:14.8]} 26... Nf4+
{[%clk 0:00:47.5]} 27. Kf3 {[%clk 0:00:16.2]} 27... Nd3 {[%clk 0:00:49.2]} 28.
Ba3 {[%clk 0:00:17.8]} 28... Nxc1 {[%clk 0:00:44.9]} 29. Rxc1 {[%clk 0:00:18.7]}
29... Nc8 {[%clk 0:00:46.5]} 30. Nxc8 {[%clk 0:00:10.4]} 30... Rxc8 {[%clk
0:00:48.4]} 31. Nd6 {[%clk 0:00:10.3]} 31... Rb8 {[%clk 0:00:49.3]} 32. Rb1
{[%clk 0:00:11.5]} 32... Ra7 {[%clk 0:00:45.6]} 33. Ke4 {[%clk 0:00:12.6]} 33...
Re7+ {[%clk 0:00:45.2]} 34. Kd3 {[%clk 0:00:14.1]} 34... Re5 {[%clk 0:00:43.3]}
35. f3 {[%clk 0:00:14.1]} 35... Bf8 {[%clk 0:00:42.3]} 36. h3 {[%clk 0:00:12]}
36... h5 {[%clk 0:00:43]} 37. Kxd4 {[%clk 0:00:10.8]} 37... Rd5+ {[%clk
0:00:43]} 38. Kc3 {[%clk 0:00:11.5]} 38... Bxd6 {[%clk 0:00:36.7]} 39. cxd6
{[%clk 0:00:13.4]} 39... c5 {[%clk 0:00:38.2]} 40. Re1 {[%clk 0:00:13.7]} 40...
Rc8 {[%clk 0:00:37.8]} 41. d7 {[%clk 0:00:09.1]} 41... Rxd7 {[%clk 0:00:38.7]}
42. gxh5 {[%clk 0:00:08.8]} 42... gxh5 {[%clk 0:00:38.9]} 43. Re5 {[%clk
0:00:10.5]} 43... Rd6 {[%clk 0:00:37.7]} 44. Bxc5 {[%clk 0:00:10.8]} 44... Rf6
{[%clk 0:00:38.5]} 45. d4 {[%clk 0:00:11]} 45... Rxf3+ {[%clk 0:00:39.3]} 46.
Kc4 {[%clk 0:00:12.6]} 46... Rxh3 {[%clk 0:00:40.7]} 47. Rg5+ {[%clk 0:00:07.4]}
47... Kh7 {[%clk 0:00:41.3]} 48. d5 {[%clk 0:00:07.1]} 48... Rh1 {[%clk
0:00:40.9]} 49. d6 {[%clk 0:00:07.5]} 49... Rd1 {[%clk 0:00:40.9]} 50. Kb5
{[%clk 0:00:07.4]} 50... Kh6 {[%clk 0:00:38.1]} 51. Re5 {[%clk 0:00:06]} 51...
h4 {[%clk 0:00:38.2]} 52. Be3+ {[%clk 0:00:06.2]} 52... Kg6 {[%clk 0:00:39.3]}
53. Rg5+ {[%clk 0:00:03.8]} 53... Kf6 {[%clk 0:00:40.6]} 54. Rh5 {[%clk
0:00:05.1]} 54... Rd3 {[%clk 0:00:36.2]} 55. Bc5 {[%clk 0:00:04]} 55... Rxb3+
{[%clk 0:00:35.3]} 56. Kc4 {[%clk 0:00:05.6]} 56... Rb4+ {[%clk 0:00:31.9]} 57.
Kd5 {[%clk 0:00:05.9]} 57... Rxc5+ {[%clk 0:00:26.2]} 58. Kxc5 {[%clk 0:00:07]}
58... Ke6 {[%clk 0:00:28.1]} 59. Rh8 {[%clk 0:00:03.7]} 59... Kd7 {[%clk
0:00:26.3]} 60. Rh7 {[%clk 0:00:03.5]} 60... Rf4 {[%clk 0:00:25.2]} 61. Kd5
{[%clk 0:00:04.2]} 61... Rf5+ {[%clk 0:00:26.2]} 62. Ke4 {[%clk 0:00:05.6]}
62... Rc5 {[%clk 0:00:25.8]} 63. Kd4 {[%clk 0:00:04.8]} 63... Rf5 {[%clk
0:00:25]} 64. Ke4 {[%clk 0:00:05]} 64... Rf1 {[%clk 0:00:25.8]} 65. Rh6 {[%clk
0:00:04.8]} 65... h3 {[%clk 0:00:22.2]} 66. Ke5 {[%clk 0:00:05.1]} 66... f6+
{[%clk 0:00:21.5]} 67. Kd5 {[%clk 0:00:05.9]} 67... Rf5+ {[%clk 0:00:21.6]} 68.
Ke4 {[%clk 0:00:06.8]} 68... Re5+ {[%clk 0:00:23]} 69. Kd4 {[%clk 0:00:07.7]}
69... Kxd6 {[%clk 0:00:24.2]} 70. Rxh3 {[%clk 0:00:06.7]} 70... Rg5 {[%clk
0:00:25.3]} 71. Kc4 {[%clk 0:00:06.7]} 71... Ke5 {[%clk 0:00:23]} 72. Rh8 {[%clk
0:00:04.5]} 72... Kf4 {[%clk 0:00:23.5]} 73. Rf8 {[%clk 0:00:05.1]} 73... Rf5
{[%clk 0:00:24]} 74. Kd4 {[%clk 0:00:05.4]} 74... Kf3 {[%clk 0:00:22.9]} 75. Rf7
{[%clk 0:00:03.9]} 75... Kg4 {[%clk 0:00:20.2]} 76. Ke4 {[%clk 0:00:03.9]} 76...
Re5+ {[%clk 0:00:21.4]} 77. Kd4 {[%clk 0:00:05.3]} 77... Kf5 {[%clk 0:00:22.9]}
78. Kc4 {[%clk 0:00:05.3]} 78... Ke6 {[%clk 0:00:22.7]} 79. Rf8 {[%clk
0:00:06.5]} 79... f5 {[%clk 0:00:23]} 80. Re8+ {[%clk 0:00:06.3]} 80... Kf6
{[%clk 0:00:23.9]} 81. Rf8+ {[%clk 0:00:06.5]} 81... Kg5 {[%clk 0:00:25.2]} 82.
Kd4 {[%clk 0:00:03.8]} 82... Re4+ {[%clk 0:00:26]} 83. Kc5 {[%clk 0:00:03.1]}
83... Rxa4 {[%clk 0:00:27.9]} 84. Rg8+ {[%clk 0:00:04.6]} 84... Kf4 {[%clk
0:00:28.7]} 85. Kb5 {[%clk 0:00:06.5]} 85... Ra1 {[%clk 0:00:29.7]} 86. Rh8
{[%clk 0:00:08.4]} 86... a4 {[%clk 0:00:30.1]} 87. Rh1 {[%clk 0:00:09]} 87...
Rxh1 {[%clk 0:00:29.9]} 0-1

[Event "*** Qualifier 3: Titled Tuesday 3|2 Blitz"]
[Site "Chess.com"]
[Date "2017.04.18"]
[Round "2"]
[White "evgenysharapov"]
[Black "Astaneh"]
[Result "0-1"]
[WhiteElo "2269"]
[BlackElo "2489"]
[TimeControl "180+2"]
[EndTime "13:28:03 PDT"]
[Termination "Astaneh won by resignation"]

1. e4 {[%clk 0:03:00.1]} 1... e5 {[%clk 0:03:00.1]} 2. Nf3 {[%clk 0:03:00.4]}
2... Nc6 {[%clk 0:03:01.3]} 3. Bb5 {[%clk 0:03:01.2]} 3... Nf6 {[%clk
0:03:01.2]} 4. d3 {[%clk 0:03:00.8]} 4... Bc5 {[%clk 0:03:01]} 5. O-O {[%clk
0:03:01.1]} 5... d6 {[%clk 0:02:57.9]} 6. c3 {[%clk 0:03:01.3]} 6... O-O {[%clk
0:02:51.4]} 7. h3 {[%clk 0:03:01.4]} 7... Bb6 {[%clk 0:02:48.8]} 8. Re1 {[%clk
0:03:01.7]} 8... Ne7 {[%clk 0:02:49]} 9. Nbd2 {[%clk 0:03:01.9]} 9... c6 {[%clk
0:02:49.4]} 10. Ba4 {[%clk 0:03:02.1]} 10... Ng6 {[%clk 0:02:49.2]} 11. Nf1
{[%clk 0:03:00.2]} 11... h6 {[%clk 0:02:47.3]} 12. Ng3 {[%clk 0:03:00.2]} 12...
Re8 {[%clk 0:02:39.8]} 13. Be3 {[%clk 0:02:51.2]} 13... Bxe3 {[%clk 0:02:39.1]}
14. Rxe3 {[%clk 0:02:49.6]} 14... d5 {[%clk 0:02:40.3]} 15. Bb3 {[%clk
0:02:39.9]} 15... a5 {[%clk 0:02:08.9]} 16. a3 {[%clk 0:02:32.6]} 16... Be6
{[%clk 0:01:22.7]} 17. d4 {[%clk 0:02:21.1]} 17... dxe4 {[%clk 0:01:19.6]} 18.
Nxe4 {[%clk 0:02:19.5]} 18... Nxe4 {[%clk 0:01:04.7]} 19. Rxe4 {[%clk
0:02:16.7]} 19... Bxb3 {[%clk 0:01:00.3]} 20. Qxb3 {[%clk 0:02:16.3]} 20... Qd5
{[%clk 0:01:01.9]} 21. Qc2 {[%clk 0:02:07.2]} 21... f5 {[%clk 0:01:00.2]} 22.
Re2 {[%clk 0:02:04.6]} 22... e4 {[%clk 0:01:00.4]} 23. Nd2 {[%clk 0:01:53.2]}
23... Nf4 {[%clk 0:00:59.6]} 24. Re3 {[%clk 0:01:52.1]} 24... Re6 {[%clk
0:00:56.4]} 25. Qb3 {[%clk 0:01:45.5]} 25... Rg6 {[%clk 0:00:50.6]} 26. Rg3
{[%clk 0:01:28.1]} 26... Ne2+ {[%clk 0:00:50.3]} 27. Kh2 {[%clk 0:01:28.1]}
27... Nxg3 {[%clk 0:00:51.6]} 28. fxg3 {[%clk 0:01:28.9]} 28... Qxb3 {[%clk
0:00:49]} 29. Nxb3 {[%clk 0:01:29.2]} 29... b6 {[%clk 0:00:49.1]} 30. Rf1 {[%clk
0:01:28.4]} 30... Rf6 {[%clk 0:00:46.7]} 31. Nd2 {[%clk 0:01:26.7]} 31... Re8
{[%clk 0:00:46.8]} 32. Nc4 {[%clk 0:01:26.8]} 32... g6 {[%clk 0:00:46.1]} 33.
Nxb6 {[%clk 0:01:24.1]} 33... e3 {[%clk 0:00:35.8]} 34. Nc4 {[%clk 0:01:23.6]}
34... g5 {[%clk 0:00:34.6]} 35. Re1 {[%clk 0:01:19.9]} 35... f4 {[%clk
0:00:32.3]} 36. gxf4 {[%clk 0:01:20.5]} 36... gxf4 {[%clk 0:00:34.2]} 37. Kg1
{[%clk 0:01:12.7]} 37... Re4 {[%clk 0:00:29.4]} 38. Kf1 {[%clk 0:01:00.9]} 38...
c5 {[%clk 0:00:28.8]} 39. Ke2 {[%clk 0:00:52.9]} 39... cxd4 {[%clk 0:00:29.1]}
40. Kf3 {[%clk 0:00:53.8]} 40... Rfe6 {[%clk 0:00:22.2]} 41. cxd4 {[%clk
0:00:54.2]} 41... Rxd4 {[%clk 0:00:23.7]} 42. Nxa5 {[%clk 0:00:54.6]} 42... Rd2
{[%clk 0:00:13.9]} 43. Kxf4 {[%clk 0:00:52.5]} 43... e2 {[%clk 0:00:09.8]} 44.
Kf3 {[%clk 0:00:49.6]} 44... Rxb2 {[%clk 0:00:11.2]} 45. Nc4 {[%clk 0:00:48]}
45... Rc2 {[%clk 0:00:12.6]} 46. Ne3 {[%clk 0:00:47.6]} 46... Rc3 {[%clk
0:00:11.6]} 47. Rxe2 {[%clk 0:00:47.7]} 47... Rxa3 {[%clk 0:00:13]} 48. g4
{[%clk 0:00:48.1]} 48... Kf7 {[%clk 0:00:13.1]} 49. Kf4 {[%clk 0:00:48.8]} 49...
Kg6 {[%clk 0:00:13.6]} 50. h4 {[%clk 0:00:46.9]} 50... Rb3 {[%clk 0:00:15]} 51.
h5+ {[%clk 0:00:32]} 51... Kf7 {[%clk 0:00:15.7]} 52. Re1 {[%clk 0:00:30.3]}
52... Rb4+ {[%clk 0:00:12.9]} 53. Kf3 {[%clk 0:00:28.6]} 53... Rb3 {[%clk
0:00:13.1]} 54. Kf2 {[%clk 0:00:27.4]} 54... Rb2+ {[%clk 0:00:14]} 55. Kf3
{[%clk 0:00:25.1]} 55... Rh2 {[%clk 0:00:14.4]} 56. Kf4 {[%clk 0:00:19.2]} 56...
Rf2+ {[%clk 0:00:15]} 57. Kg3 {[%clk 0:00:19.4]} 57... Rff6 {[%clk 0:00:15.7]}
58. Re2 {[%clk 0:00:18.8]} 58... Re4 {[%clk 0:00:16.9]} 59. Re1 {[%clk
0:00:19.1]} 59... Ke6 {[%clk 0:00:18]} 60. Re2 {[%clk 0:00:19.4]} 60... Kf7
{[%clk 0:00:16.1]} 61. Re1 {[%clk 0:00:19.5]} 61... Ke8 {[%clk 0:00:17.3]} 62.
Re2 {[%clk 0:00:20.1]} 62... Re5 {[%clk 0:00:18.7]} 63. Nd5 {[%clk 0:00:19.5]}
63... Rxe2 {[%clk 0:00:15.9]} 64. Nxf6+ {[%clk 0:00:20.3]} 64... Kf7 {[%clk
0:00:16.9]} 65. Nd5 {[%clk 0:00:21]} 65... Rd2 {[%clk 0:00:17]} 66. Ne3 {[%clk
0:00:20.9]} 66... Kf6 {[%clk 0:00:17.6]} 67. Kf4 {[%clk 0:00:20.5]} 67... Rd4+
{[%clk 0:00:17.9]} 68. Kf3 {[%clk 0:00:21.2]} 68... Kg5 {[%clk 0:00:18.9]} 69.
Kg3 {[%clk 0:00:21.6]} 69... Rf4 {[%clk 0:00:16.2]} 70. Kg2 {[%clk 0:00:21]}
70... Kh4 {[%clk 0:00:16.3]} 71. Nf5+ {[%clk 0:00:21.1]} 71... Kxg4 {[%clk
0:00:15.7]} 72. Nxh6+ {[%clk 0:00:21.6]} 72... Kxh5 {[%clk 0:00:10.1]} 73. Ng8
{[%clk 0:00:22.2]} 73... Rf7 {[%clk 0:00:11.3]} 74. Kh3 {[%clk 0:00:20.7]} 74...
Kg6 {[%clk 0:00:11.3]} 75. Kg4 {[%clk 0:00:21.5]} 75... Kg7 {[%clk 0:00:12.4]}
0-1